[Event "CZE-ch FIDE Open 2020"]
[Site "Kouty nad Desnou"]
[Date "2020.03.09"]
[Round "4.1"]
[White "Pycha, Patrik"]
[Black "Bares, Jachym"]
[Result "0-1"]
[ECO "C54"]
[WhiteElo "2024"]
[BlackElo "2119"]
[Annotator "NA"]
[PlyCount "92"]
[EventDate "2020.03.07"]
[EventCountry "CZE"]
[SourceTitle "playchess.com"]
[Source "ChessBase"]
[SourceQuality "1"]
[TimeControl "5400+30"]

1. e4 {[%emt 0:00:00]} e5 {[%emt 0:00:00]} 2. Nf3 {[%emt 0:00:00]} Nc6 {[%emt 0:00:00]} 3. Bc4 {[%emt 0:00:00]} Nf6 {[%emt 0:00:00]} 4. d3 {[%emt 0:00:00]} Bc5 {[%emt 0:00:00]} 5. O-O {[%emt 0:00:06]} d6 {[%emt 0:00:21]} 6. c3 {[%emt 0:00:58]} a6 {[%emt 0:00:07]} 7. Bb3 {[%emt 0:00:37]} Ba7 {[%emt 0:00:13]} 8. Re1 {[%emt 0:00:32]} O-O {[%emt 0:00:42]} 9. h3 {[%emt 0:01:01]} h6 {[%emt 0:00:06]} 10. Nbd2 {[%emt 0:01:28]} Nh5 {[%emt 0:00:59]} 11. Nf1 {[%emt 0:02:33]} Qf6 {[%emt 0:00:20]} 12. Ne3 {[%emt 0:03:27]} Nf4 {[%emt 0:02:18]} 13. Ng4 {[%emt 0:00:52] is now more promising than 13.Nd5. C54: Giuoco Piano: 4 c3 Nf6, main lines with 5 d4 and 5 d3.} Qg6 {[%emt 0:08:10]} 14. Bxf4 {[%emt 0:02:04]} exf4 {[%emt 0:00:02] [#]} 15. e5 $146 {[%emt 0:06:02]} ({Predecessor:} 15. d4 Bxg4 16. hxg4 Qxg4 17. a4 Ne7 18. Qd3 Rad8 19. Bc2 Ng6 20. e5 dxe5 21. Nxe5 {1-0 (55) Andriasian,Z (2585)-Kovalev,V (2639) Katowice 2017}) 15... h5 {[%emt 0:07:56]} 16. Nh4 {[%emt 0:06:11]} Qh7 {[%emt 0:08:17]} 17. Nh2 {[%emt 0:03:42]} g5 {[%emt 0:11:58]} 18. exd6 {[%emt 0:02:47]} gxh4 {[%emt 0:02:43]} 19. d4 {[%emt 0:05:46]} cxd6 {[%emt 0:03:01]} 20. Nf3 {[%emt 0:02:49]} Bf5 {[%emt 0:02:42]} 21. Qd2 {[%emt 0:01:25]} Qh6 {[%emt 0:02:04]} 22. Nxh4 {[%emt 0:03:34]} Bh7 {[%emt 0:00:23]} 23. Nf3 {[%emt 0:01:13]} Rae8 {[%emt 0:01:42]} 24. h4 {[%emt 0:00:30]} Qf6 {[%emt 0:03:28]} 25. Ng5 {[%emt 0:02:21]} Bg6 {[%emt 0:00:02]} 26. Bd5 {[%emt 0:08:50]} Bb6 {[%emt 0:07:06]} 27. g3 {[%emt 0:04:09]} fxg3 {[%emt 0:04:47]} 28. fxg3 {[%emt 0:00:12]} Nxd4 {[%emt 0:04:54]} 29. cxd4 {[%emt 0:00:32]} Qxd4+ {[%emt 0:01:04]} 30. Qxd4 {[%emt 0:00:08]} Bxd4+ {[%emt 0:00:05]} 31. Kh2 {[%emt 0:01:02]} Bxb2 {[%emt 0:00:50]} 32. Rxe8 {[%emt 0:00:51]} Rxe8 $19 {[%emt 0:00:02]} 33. Rf1 {[%emt 0:00:46]} Re7 {[%emt 0:01:30]} 34. Rf2 {[%emt 0:01:29]} Bd4 {[%emt 0:00:53]} 35. Rf4 {[%emt 0:02:36]} Be3 {[%emt 0:04:18]} 36. Rf6 {[%emt 0:00:23]} Kg7 {[%emt 0:02:01]} 37. Rxd6 {[%emt 0:00:37]} Bxg5 {[%emt 0:00:30]} 38. hxg5 {[%emt 0:00:07]} Re2+ {[%emt 0:01:32]} 39. Kg1 {[%emt 0:00:14]} Rd2 {[%emt 0:00:24]} 40. Rd7 {[%emt 0:00:41]} Rd3 {[%emt 0:01:26]} 41. Be6 {[%emt 0:03:36]} Rxd7 {[%emt 0:08:03]} 42. Bxd7 {[%emt 0:00:07]} Bb1 {[%emt 0:01:11]} 43. a3 {[%emt 0:00:05]} Kg6 {[%emt 0:00:45]} 44. Kf2 {[%emt 0:01:27]} Kxg5 {[%emt 0:00:28]} 45. Ke3 {[%emt 0:00:07]} Bf5 {[%emt 0:00:38]} 46. Be8 {[%emt 0:00:37]} Be6 {[%emt 0:00:47]} 0-1

[Event "CZE-ch FIDE Open 2020"]
[Site "Kouty nad Desnou"]
[Date "2020.03.09"]
[Round "4.4"]
[White "Slepov, Kyryl"]
[Black "Kucera, Tomas"]
[Result "1-0"]
[ECO "B36"]
[WhiteElo "1973"]
[BlackElo "1985"]
[Annotator "ChessBase"]
[PlyCount "99"]
[EventDate "2020.03.07"]
[EventCountry "CZE"]
[SourceTitle "playchess.com"]
[Source "ChessBase"]
[SourceQuality "1"]
[TimeControl "5400+30"]

1. e4 {[%emt 0:01:24]} c5 {[%emt 0:00:19]} 2. Nf3 {[%emt 0:00:13]} Nc6 {[%emt 0:00:08]} 3. c4 {[%emt 0:00:49]} g6 {[%emt 0:00:22]} 4. d4 {[%emt 0:00:16]} cxd4 {[%emt 0:00:11]} 5. Nxd4 {[%emt 0:00:09]} Nxd4 {[%emt 0:00:05]} 6. Qxd4 {[%emt 0:01:18]} Nf6 {[%emt 0:00:03]} 7. Nc3 {[%emt 0:00:33]} d6 {[%emt 0:00:30]} 8. Be2 {[%emt 0:02:03]} Bg7 {[%emt 0:00:13]} 9. O-O {[%emt 0:00:36]} O-O {[%emt 0:00:07]} 10. Qe3 {[%emt 0:00:24]} Be6 {[%emt 0:02:09]} 11. Bd2 {[%emt 0:01:50]} Nd7 {[%emt 0:01:46]} 12. f4 {[%emt 0:03:43]} Qb6 {[%emt 0:03:41]} 13. Qxb6 {[%emt 0:00:33]} Nxb6 {[%emt 0:00:09]} 14. b3 {[%emt 0:00:19]} Bd4+ {[%emt 0:00:35]} 15. Kh1 {[%emt 0:00:28]} f5 {[%emt 0:00:46]} 16. Bf3 {[%emt 0:00:43]} fxe4 {[%emt 0:03:07]} 17. Bxe4 {[%emt 0:00:30]} Rab8 {[%emt 0:05:44]} 18. Rae1 {[%emt 0:01:17]} Bd7 {[%emt 0:12:34]} 19. a4 {[%emt 0:02:37]} e5 {[%emt 0:17:02]} 20. a5 {[%emt 0:05:17]} Na8 {[%emt 0:05:06]} 21. Ne2 {[%emt 0:01:02]} Nc7 {[%emt 0:01:17]} 22. Nxd4 {[%emt 0:01:16]} exd4 {[%emt 0:00:11]} 23. Bb4 {[%emt 0:00:11]} Rf6 {[%emt 0:01:42]} 24. Rd1 {[%emt 0:00:33]} Bc6 {[%emt 0:01:36]} 25. Rxd4 {[%emt 0:01:22]} Ne6 {[%emt 0:05:39]} 26. Bd5 {[%emt 0:00:35]} Bxd5 {[%emt 0:00:16]} 27. Rxd5 {[%emt 0:00:45]} Nxf4 {[%emt 0:02:11]} 28. Rxd6 {[%emt 0:02:18]} Rbf8 {[%emt 0:00:25]} 29. Rxf6 {[%emt 0:02:35]} Rxf6 {[%emt 0:00:08]} 30. g3 {[%emt 0:00:13]} Nd5 {[%emt 0:00:20]} 31. Rxf6 {[%emt 0:00:10]} Nxf6 {[%emt 0:00:06]} 32. Kg2 {[%emt 0:00:46]} Kf7 {[%emt 0:00:07]} 33. Kf3 {[%emt 0:00:15]} Ke6 {[%emt 0:00:09]} 34. Bc3 {[%emt 0:02:03]} Nd7 {[%emt 0:01:17]} 35. Bd4 {[%emt 0:00:19]} a6 {[%emt 0:00:20]} 36. Ke4 {[%emt 0:00:49]} Nb8 {[%emt 0:00:31]} 37. b4 {[%emt 0:00:33]} Nc6 {[%emt 0:00:53]} 38. Bc3 {[%emt 0:00:13]} Ne7 {[%emt 0:00:51]} 39. g4 {[%emt 0:00:12]} Ng8 {[%emt 0:00:47]} 40. Kd4 {[%emt 0:02:09]} Nf6 {[%emt 0:00:52]} 41. g5 {[%emt 0:00:37]} Nd7 {[%emt 0:00:33]} 42. Bd2 {[%emt 0:01:03]} Ne5 {[%emt 0:01:01]} 43. Kc5 {[%emt 0:00:50]} Kd7 {[%emt 0:00:29]} 44. Kd5 {[%emt 0:02:54]} Nf3 {[%emt 0:01:48]} 45. Bf4 {[%emt 0:00:38]} Ne1 {[%emt 0:00:21]} 46. Ke4 {[%emt 0:01:53]} Ke6 {[%emt 0:01:37]} 47. h3 {[%emt 0:01:35]} Nc2 {[%emt 0:01:20]} 48. Bd2 {[%emt 0:00:16]} Na3 {[%emt 0:00:14]} 49. Kd3 {[%emt 0:01:28]} Kf5 {[%emt 0:00:52]} 50. Bc1 {[%emt 0:00:29]} 1-0

[Event "CZE-ch FIDE Open 2020"]
[Site "Kouty nad Desnou"]
[Date "2020.03.09"]
[Round "4.5"]
[White "Glozar, Petr"]
[Black "Lukas, Frantisek"]
[Result "1-0"]
[ECO "D27"]
[WhiteElo "1918"]
[BlackElo "1852"]
[Annotator "ChessBase"]
[PlyCount "41"]
[EventDate "2020.03.07"]
[EventCountry "CZE"]
[SourceTitle "playchess.com"]
[Source "ChessBase"]
[SourceQuality "1"]
[TimeControl "5400+30"]

1. d4 {[%emt 0:00:00]} d5 {[%emt 0:00:00]} 2. c4 {[%emt 0:00:00]} dxc4 {[%emt 0:00:00]} 3. e3 {[%emt 0:00:00]} Nf6 {[%emt 0:00:00]} 4. Bxc4 {[%emt 0:00:07]} e6 {[%emt 0:00:00]} 5. Nc3 {[%emt 0:01:09]} c5 {[%emt 0:01:20]} 6. Nf3 {[%emt 0:00:34]} a6 {[%emt 0:01:33]} 7. a4 {[%emt 0:01:04]} Nc6 {[%emt 0:03:00]} 8. O-O {[%emt 0:01:05]} cxd4 {[%emt 0:00:38]} 9. exd4 {[%emt 0:00:23]} Be7 {[%emt 0:01:26]} 10. Be3 {[%emt 0:04:37]} O-O {[%emt 0:01:05]} 11. Rc1 {[%emt 0:06:14]} Nb4 {[%emt 0:02:47]} 12. Qb3 {[%emt 0:02:54]} Nbd5 {[%emt 0:06:49]} 13. Bg5 {[%emt 0:02:56]} Nxc3 {[%emt 0:03:47]} 14. Rxc3 {[%emt 0:09:26]} b6 {[%emt 0:05:25]} 15. Ne5 {[%emt 0:20:39]} Qd6 {[%emt 0:14:22]} 16. Be2 {[%emt 0:18:41]} Rb8 {[%emt 0:07:27]} 17. Nc6 {[%emt 0:02:07]} Ra8 {[%emt 0:06:02]} 18. Bf3 {[%emt 0:05:58]} Bb7 {[%emt 0:01:37]} 19. Bf4 {[%emt 0:01:56]} Qd7 {[%emt 0:01:42]} 20. Nxe7+ {[%emt 0:00:22]} Qxe7 {[%emt 0:00:08]} 21. Rc7 {[%emt 0:00:15]} 1-0

[Event "CZE-ch FIDE Open 2020"]
[Site "Kouty nad Desnou"]
[Date "2020.03.09"]
[Round "4.6"]
[White "Zdechovsky, Tobias"]
[Black "Dejmal, Ondrej"]
[Result "1/2-1/2"]
[ECO "C54"]
[WhiteElo "1922"]
[BlackElo "1757"]
[Annotator "ChessBase"]
[PlyCount "21"]
[EventDate "2020.03.07"]
[EventCountry "CZE"]
[SourceTitle "playchess.com"]
[Source "ChessBase"]
[SourceQuality "1"]
[TimeControl "5400+30"]

1. e4 {[%emt 0:00:00]} e5 {[%emt 0:00:00]} 2. Nf3 {[%emt 0:00:00]} Nc6 {[%emt 0:00:00]} 3. Bc4 {[%emt 0:00:00]} Bc5 {[%emt 0:00:38]} 4. d3 {[%emt 0:00:04]} h6 {[%emt 0:06:00]} 5. c3 {[%emt 0:02:14]} Nf6 {[%emt 0:08:16]} 6. O-O {[%emt 0:00:28]} d6 {[%emt 0:01:08]} 7. a4 {[%emt 0:09:19]} a6 {[%emt 0:01:44]} 8. Be3 {[%emt 0:02:34]} O-O {[%emt 0:09:17]} 9. Nbd2 {[%emt 0:01:21]} Bxe3 {[%emt 0:04:24]} 10. fxe3 {[%emt 0:00:07]} Be6 {[%emt 0:05:53]} 11. Bxe6 {[%emt 0:05:20]} 1/2-1/2

[Event "CZE-ch FIDE Open 2020"]
[Site "Kouty nad Desnou"]
[Date "2020.03.09"]
[Round "4.7"]
[White "Stastny, Jakub"]
[Black "Brazdil, Roman"]
[Result "0-1"]
[ECO "D36"]
[WhiteElo "1917"]
[BlackElo "2116"]
[Annotator "ChessBase"]
[PlyCount "76"]
[EventDate "2020.03.07"]
[EventCountry "CZE"]
[SourceTitle "playchess.com"]
[Source "ChessBase"]
[SourceQuality "1"]
[TimeControl "5400+30"]

1. d4 {[%emt 0:00:00]} Nf6 {[%emt 0:00:00]} 2. c4 {[%emt 0:00:19]} e6 {[%emt 0:00:00]} 3. Nc3 {[%emt 0:00:18]} d5 {[%emt 0:00:00]} 4. cxd5 {[%emt 0:00:44]} exd5 {[%emt 0:00:00]} 5. Bg5 {[%emt 0:00:30]} Be7 {[%emt 0:00:00]} 6. e3 {[%emt 0:00:31]} c6 {[%emt 0:00:00]} 7. Qc2 {[%emt 0:00:17]} O-O {[%emt 0:00:49]} 8. Bd3 {[%emt 0:01:00]} Nbd7 {[%emt 0:00:10]} 9. Nf3 {[%emt 0:00:13]} h6 {[%emt 0:00:54]} 10. Bh4 {[%emt 0:02:28]} Re8 {[%emt 0:00:20]} 11. O-O {[%emt 0:00:54]} Ne4 {[%emt 0:01:10]} 12. Bxe7 {[%emt 0:01:02]} Qxe7 {[%emt 0:00:15]} 13. Rab1 {[%emt 0:04:31]} Ndf6 {[%emt 0:02:48]} 14. b4 {[%emt 0:02:00]} a6 {[%emt 0:00:28]} 15. a4 {[%emt 0:01:30]} Bf5 {[%emt 0:02:25]} 16. Rfc1 {[%emt 0:08:33]} Nxc3 {[%emt 0:04:52]} 17. Qxc3 {[%emt 0:00:28]} Be4 {[%emt 0:01:20]} 18. Ne5 {[%emt 0:04:15]} Bxd3 {[%emt 0:00:48]} 19. Qxd3 {[%emt 0:01:16]} Ne4 {[%emt 0:00:45]} 20. Nf3 {[%emt 0:03:05]} Nd6 {[%emt 0:02:11]} 21. Nd2 {[%emt 0:01:49]} Rec8 {[%emt 0:05:02]} 22. h3 {[%emt 0:12:03]} g6 {[%emt 0:02:21]} 23. Rc2 {[%emt 0:01:53]} Kg7 {[%emt 0:00:22]} 24. Rbc1 {[%emt 0:00:37]} Re8 {[%emt 0:01:23]} 25. Re1 {[%emt 0:01:10]} Rac8 {[%emt 0:01:22]} 26. Nb3 {[%emt 0:00:56]} Nc4 {[%emt 0:01:19]} 27. Nc5 {[%emt 0:00:25]} Ra8 {[%emt 0:05:45]} 28. Qb3 {[%emt 0:01:04]} b6 {[%emt 0:02:24]} 29. Nd3 {[%emt 0:00:03]} a5 {[%emt 0:00:22]} 30. Ne5 {[%emt 0:07:17]} Nxe5 {[%emt 0:05:05]} 31. dxe5 {[%emt 0:00:08]} Qxb4 {[%emt 0:04:43]} 32. Qxb4 {[%emt 0:01:31]} axb4 {[%emt 0:00:10]} 33. Rxc6 {[%emt 0:00:05]} Rxa4 {[%emt 0:03:59]} 34. Rxb6 {[%emt 0:01:07]} Rxe5 {[%emt 0:00:23]} 35. Rb1 {[%emt 0:00:13]} Re4 {[%emt 0:01:49]} 36. Kf1 {[%emt 0:01:29]} Rc4 {[%emt 0:00:17]} 37. Rd1 {[%emt 0:02:42]} Ra2 {[%emt 0:03:36]} 38. Rb5 {[%emt 0:01:21]} Rcc2 {[%emt 0:00:38]} 0-1

[Event "CZE-ch FIDE Open 2020"]
[Site "Kouty nad Desnou"]
[Date "2020.03.09"]
[Round "4.8"]
[White "Vokoun, Tomas"]
[Black "Kubicek, Antonin"]
[Result "0-1"]
[ECO "B09"]
[WhiteElo "1673"]
[BlackElo "2113"]
[Annotator "ChessBase"]
[PlyCount "40"]
[EventDate "2020.03.07"]
[EventCountry "CZE"]
[SourceTitle "playchess.com"]
[Source "ChessBase"]
[SourceQuality "1"]
[TimeControl "5400+30"]

1. e4 {[%emt 0:00:00]} d6 {[%emt 0:00:02]} 2. d4 {[%emt 0:00:56]} Nf6 {[%emt 0:00:07]} 3. Nc3 {[%emt 0:00:54]} g6 {[%emt 0:00:18]} 4. f4 {[%emt 0:01:02]} Bg7 {[%emt 0:00:21]} 5. Nf3 {[%emt 0:01:21]} O-O {[%emt 0:00:47]} 6. Be2 {[%emt 0:01:36]} c6 {[%emt 0:02:39]} 7. O-O {[%emt 0:00:42]} b5 {[%emt 0:03:01]} 8. a3 {[%emt 0:04:40]} a6 {[%emt 0:00:48]} 9. h3 {[%emt 0:02:19]} Nbd7 {[%emt 0:04:45]} 10. Be3 {[%emt 0:03:40]} Nb6 {[%emt 0:00:40]} 11. b3 {[%emt 0:03:16]} d5 {[%emt 0:05:22]} 12. e5 {[%emt 0:03:22]} Ne4 {[%emt 0:02:33]} 13. Nxe4 {[%emt 0:03:08]} dxe4 {[%emt 0:00:03]} 14. Nd2 {[%emt 0:00:58]} Nd5 {[%emt 0:00:35]} 15. Kf2 {[%emt 0:03:09]} f6 {[%emt 0:04:40]} 16. c4 {[%emt 0:05:23]} fxe5 {[%emt 0:04:39]} 17. cxd5 {[%emt 0:08:32]} exd4 {[%emt 0:00:34]} 18. Ke1 {[%emt 0:07:24]} dxe3 {[%emt 0:00:23]} 19. Nxe4 {[%emt 0:00:20]} cxd5 {[%emt 0:03:36]} 20. Rc1 {[%emt 0:03:15]} dxe4 {[%emt 0:00:25]} 0-1

[Event "CZE-ch FIDE Open 2020"]
[Site "Kouty nad Desnou"]
[Date "2020.03.09"]
[Round "4.9"]
[White "Tuma, Jan"]
[Black "Dedek, Jan"]
[Result "1-0"]
[ECO "B33"]
[WhiteElo "1993"]
[BlackElo "1551"]
[Annotator "ChessBase"]
[PlyCount "35"]
[EventDate "2020.03.07"]
[EventCountry "CZE"]
[SourceTitle "playchess.com"]
[Source "ChessBase"]
[SourceQuality "1"]
[TimeControl "5400+30"]

1. e4 {[%emt 0:00:00]} c5 {[%emt 0:00:00]} 2. Nf3 {[%emt 0:00:13]} Nc6 {[%emt 0:00:02]} 3. d4 {[%emt 0:00:35]} cxd4 {[%emt 0:00:07]} 4. Nxd4 {[%emt 0:00:05]} Nf6 {[%emt 0:00:05]} 5. Nc3 {[%emt 0:00:17]} e5 {[%emt 0:00:06]} 6. Ndb5 {[%emt 0:01:17]} d6 {[%emt 0:00:05]} 7. Nd5 {[%emt 0:04:40]} Nxd5 {[%emt 0:00:06]} 8. exd5 {[%emt 0:00:05]} Nb8 {[%emt 0:00:07]} 9. c4 {[%emt 0:00:43]} Be7 {[%emt 0:05:13]} 10. g3 {[%emt 0:03:17]} f5 {[%emt 0:01:25]} 11. Bg2 {[%emt 0:00:44]} O-O {[%emt 0:00:23]} 12. O-O {[%emt 0:00:32]} a6 {[%emt 0:01:04]} 13. Nc3 {[%emt 0:00:25]} Nd7 {[%emt 0:06:17]} 14. b3 {[%emt 0:01:48]} f4 {[%emt 0:01:47]} 15. Ne4 {[%emt 0:03:02]} Nf6 {[%emt 0:00:47]} 16. Bb2 {[%emt 0:02:00]} Nxe4 {[%emt 0:01:29]} 17. Bxe4 {[%emt 0:00:11]} Bh3 {[%emt 0:02:29]} 18. Qh5 {[%emt 0:01:55]} 1-0

[Event "CZE-ch FIDE Open 2020"]
[Site "Kouty nad Desnou"]
[Date "2020.03.09"]
[Round "4.10"]
[White "Novotny, David"]
[Black "Klubal, Jiri"]
[Result "1-0"]
[ECO "B08"]
[WhiteElo "1910"]
[BlackElo "1935"]
[Annotator "ChessBase"]
[PlyCount "99"]
[EventDate "2020.03.07"]
[EventCountry "CZE"]
[SourceTitle "playchess.com"]
[Source "ChessBase"]
[SourceQuality "1"]
[TimeControl "5400+30"]

1. d4 {[%emt 0:00:00]} Nf6 {[%emt 0:00:00]} 2. Nf3 {[%emt 0:00:00]} g6 {[%emt 0:00:29]} 3. Nc3 {[%emt 0:01:03]} Bg7 {[%emt 0:01:49]} 4. e4 {[%emt 0:01:58]} d6 {[%emt 0:01:09]} 5. h3 {[%emt 0:01:49]} O-O {[%emt 0:04:15]} 6. Bf4 {[%emt 0:01:02]} c6 {[%emt 0:08:23]} 7. Qd2 {[%emt 0:04:11]} Re8 {[%emt 0:05:13]} 8. Be2 {[%emt 0:01:22]} Qa5 {[%emt 0:05:35]} 9. O-O {[%emt 0:03:22]} Nbd7 {[%emt 0:02:42]} 10. Rab1 {[%emt 0:09:43]} a6 {[%emt 0:07:03]} 11. b4 {[%emt 0:01:03]} Qc7 {[%emt 0:05:14]} 12. a4 {[%emt 0:07:42]} e5 {[%emt 0:06:10]} 13. dxe5 {[%emt 0:00:45]} dxe5 {[%emt 0:01:04]} 14. Bh6 {[%emt 0:01:40]} Nf8 {[%emt 0:03:45]} 15. Bxg7 {[%emt 0:03:29]} Kxg7 {[%emt 0:00:13]} 16. Rfd1 {[%emt 0:00:45]} Nh5 {[%emt 0:16:01]} 17. b5 {[%emt 0:05:37]} Nf4 {[%emt 0:02:13]} 18. Bf1 {[%emt 0:00:36]} cxb5 {[%emt 0:05:31]} 19. axb5 {[%emt 0:00:29]} Bd7 {[%emt 0:00:44]} 20. bxa6 {[%emt 0:03:55]} bxa6 {[%emt 0:00:48]} 21. Nd5 {[%emt 0:01:16]} Nxd5 {[%emt 0:00:54]} 22. exd5 {[%emt 0:00:37]} Ba4 {[%emt 0:02:43]} 23. Rdc1 {[%emt 0:03:09]} Nd7 {[%emt 0:02:06]} 24. Qb4 {[%emt 0:08:57]} Nc5 {[%emt 0:02:27]} 25. Ra1 {[%emt 0:00:40]} Rab8 {[%emt 0:01:04]} 26. Qc3 {[%emt 0:00:53]} Bb5 {[%emt 0:01:33]} 27. Ra5 {[%emt 0:08:57]} Qd6 {[%emt 0:02:00]} 28. Bxb5 {[%emt 0:01:35]} axb5 {[%emt 0:02:11]} 29. Qb4 {[%emt 0:11:35]} Qxd5 {[%emt 0:03:39]} 30. c4 {[%emt 0:00:27]} Nd3 {[%emt 0:03:26]} 31. Qa3 {[%emt 0:03:41]} Qe4 {[%emt 0:04:12]} 32. Ra7 {[%emt 0:09:35]} Nxc1 {[%emt 0:00:37]} 33. Rxf7+ {[%emt 0:00:07]} Kh8 {[%emt 0:00:32]} 34. Rxh7+ {[%emt 0:00:22]} Kxh7 {[%emt 0:00:37]} 35. Ng5+ {[%emt 0:00:07]} Kg7 {[%emt 0:00:12]} 36. Nxe4 {[%emt 0:00:06]} Ne2+ {[%emt 0:00:18]} 37. Kf1 {[%emt 0:01:21]} Nf4 {[%emt 0:00:19]} 38. Qa7+ {[%emt 0:00:21]} Kh6 {[%emt 0:01:01]} 39. Kg1 {[%emt 0:04:14]} Ra8 {[%emt 0:00:20]} 40. Qd7 {[%emt 0:00:31]} bxc4 {[%emt 0:00:48]} 41. Nf6 {[%emt 0:00:42]} Rf8 {[%emt 0:00:36]} 42. Ng4+ {[%emt 0:00:29]} Kg5 {[%emt 0:00:21]} 43. Qe7+ {[%emt 0:00:25]} Kh5 {[%emt 0:00:32]} 44. Qh7+ {[%emt 0:00:23]} Kg5 {[%emt 0:00:08]} 45. Qe7+ {[%emt 0:00:05]} Kh5 {[%emt 0:00:03]} 46. Qxe5+ {[%emt 0:00:50]} Rf5 {[%emt 0:00:10]} 47. Qg7 {[%emt 0:00:57]} Ne2+ {[%emt 0:01:32]} 48. Kh2 {[%emt 0:00:19]} Kh4 {[%emt 0:00:45]} 49. Qh6+ {[%emt 0:00:35]} Rh5 {[%emt 0:00:08]} 50. g3+ {[%emt 0:00:09]} 1-0

[Event "CZE-ch FIDE Open 2020"]
[Site "Kouty nad Desnou"]
[Date "2020.03.09"]
[Round "4.11"]
[White "Kosut, Tomas"]
[Black "Broz, Jan"]
[Result "1-0"]
[ECO "B12"]
[WhiteElo "1878"]
[BlackElo "1481"]
[Annotator "NA"]
[PlyCount "53"]
[EventDate "2020.03.07"]
[EventCountry "CZE"]
[SourceTitle "playchess.com"]
[Source "ChessBase"]
[SourceQuality "1"]
[TimeControl "5400+30"]

1. e4 {[%emt 0:00:00]} c6 {[%emt 0:00:03]} 2. d4 {[%emt 0:00:07]} d5 {[%emt 0:00:19]} 3. e5 {[%emt 0:01:03]} Bf5 {[%emt 0:01:10]} 4. Bd3 {[%emt 0:02:25]} Bxd3 {[%emt 0:01:58]} 5. Qxd3 {[%emt 0:00:06]} e6 {[%emt 0:02:37]} 6. f4 {[%emt 0:01:57]} Nd7 {[%emt 0:01:55]} 7. Nf3 $11 {[%emt 0:01:35]} c5 {[%emt 0:03:23]} 8. c3 {[%emt 0:02:05]} cxd4 {[%emt 0:00:44]} 9. cxd4 {[%emt 0:00:28]} Ne7 {[%emt 0:02:03]} 10. O-O {[%emt 0:00:53]} Nc6 {[%emt 0:03:12]} 11. a3 {[%emt 0:03:00]} Be7 {[%emt 0:01:46]} 12. Nc3 {[%emt 0:00:24]} O-O {[%emt 0:02:09]} 13. Ng5 {[%emt 0:02:14]} Bxg5 {[%emt 0:03:37]} 14. fxg5 {[%emt 0:00:12]} Qe7 {[%emt 0:06:52]} 15. Bd2 {[%emt 0:04:54]} a6 {[%emt 0:03:31]} 16. Rae1 {[%emt 0:02:18]} Nb6 {[%emt 0:02:57]} 17. Rf3 {[%emt 0:05:08]} Qc7 {[%emt 0:11:41]} 18. Rh3 {[%emt 0:03:03]} g6 {[%emt 0:00:06]} 19. Qg3 {[%emt 0:01:42]} Kg7 {[%emt 0:03:48]} 20. Qf4 {[%emt 0:03:52]} Rh8 {[%emt 0:04:41]} 21. Nd1 {[%emt 0:06:22]} Nd7 {[%emt 0:05:49]} 22. Nf2 {[%emt 0:01:33]} Ne7 {[%emt 0:01:09]} 23. Bb4 {[%emt 0:06:24]} Ng8 {[%emt 0:02:31]} 24. Rf3 {[%emt 0:01:28]} Nb8 {[%emt 0:03:27]} 25. Ng4 {[%emt 0:00:27]} Nc6 {[%emt 0:01:45]} 26. Nh6 {[%emt 0:01:03]} Nd8 {[%emt 0:04:43]} 27. Ref1 {[%emt 0:00:26]} 1-0

[Event "CZE-ch FIDE Open 2020"]
[Site "Kouty nad Desnou"]
[Date "2020.03.09"]
[Round "4.12"]
[White "Sochorova, Petra"]
[Black "Kanka, Lukas"]
[Result "1-0"]
[ECO "B01"]
[WhiteElo "2119"]
[BlackElo "1618"]
[Annotator "ChessBase"]
[PlyCount "95"]
[EventDate "2020.03.07"]
[EventCountry "CZE"]
[SourceTitle "playchess.com"]
[Source "ChessBase"]
[SourceQuality "1"]
[TimeControl "5400+30"]

1. e4 {[%emt 0:00:00]} d5 {[%emt 0:00:30]} 2. exd5 {[%emt 0:00:11]} Qxd5 {[%emt 0:00:07]} 3. Nc3 {[%emt 0:00:09]} Qa5 {[%emt 0:00:08]} 4. d4 {[%emt 0:01:00]} Nf6 {[%emt 0:00:57]} 5. Bd2 {[%emt 0:04:33]} Bg4 {[%emt 0:05:27]} 6. f3 {[%emt 0:08:11]} Bf5 {[%emt 0:01:29]} 7. Bc4 {[%emt 0:04:46]} Qb6 {[%emt 0:03:35]} 8. Nge2 {[%emt 0:01:56]} e6 {[%emt 0:04:28]} 9. O-O {[%emt 0:22:16]} Bd6 {[%emt 0:05:12]} 10. Bb3 {[%emt 0:16:16]} c6 {[%emt 0:01:51]} 11. Be1 {[%emt 0:04:23]} Nbd7 {[%emt 0:06:29]} 12. Ng3 {[%emt 0:00:35]} Bg6 {[%emt 0:01:38]} 13. Nce4 {[%emt 0:01:02]} Bf4 {[%emt 0:03:37]} 14. Bf2 {[%emt 0:01:56]} Qc7 {[%emt 0:01:02]} 15. Re1 {[%emt 0:00:44]} Nxe4 {[%emt 0:02:55]} 16. fxe4 {[%emt 0:00:26]} O-O {[%emt 0:03:49]} 17. Qf3 {[%emt 0:02:39]} a5 {[%emt 0:06:30]} 18. a4 {[%emt 0:01:09]} b5 {[%emt 0:01:04]} 19. h4 {[%emt 0:06:22]} h6 {[%emt 0:02:16]} 20. Ne2 {[%emt 0:01:26]} Bd2 {[%emt 0:00:57]} 21. Red1 {[%emt 0:01:28]} Bb4 {[%emt 0:00:16]} 22. c3 {[%emt 0:06:23]} Be7 {[%emt 0:01:02]} 23. Nf4 {[%emt 0:02:00]} Bh7 {[%emt 0:01:13]} 24. e5 {[%emt 0:00:47]} Kh8 {[%emt 0:02:41]} 25. Qg3 {[%emt 0:00:41]} g5 {[%emt 0:00:54]} 26. Nh5 {[%emt 0:01:26]} Rg8 {[%emt 0:01:56]} 27. Qf3 {[%emt 0:00:43]} Raf8 {[%emt 0:00:30]} 28. axb5 {[%emt 0:07:26]} cxb5 {[%emt 0:00:59]} 29. d5 {[%emt 0:00:20]} Nxe5 {[%emt 0:01:31]} 30. Bd4 {[%emt 0:00:06]} f6 {[%emt 0:02:35]} 31. Qe2 {[%emt 0:00:08]} Bf5 {[%emt 0:08:41]} 32. Ng3 {[%emt 0:02:14]} Bg4 {[%emt 0:02:16]} 33. Bxe5 {[%emt 0:00:26]} Qc5+ {[%emt 0:00:16]} 34. Bd4 {[%emt 0:00:12]} Bxe2 {[%emt 0:00:08]} 35. Bxc5 {[%emt 0:00:37]} Bxc5+ {[%emt 0:00:05]} 36. Kh1 {[%emt 0:01:14]} Bxd1 {[%emt 0:00:12]} 37. Rxd1 {[%emt 0:00:16]} gxh4 {[%emt 0:01:21]} 38. Ne4 {[%emt 0:00:20]} Bb6 {[%emt 0:00:50]} 39. dxe6 {[%emt 0:00:24]} h3 {[%emt 0:00:28]} 40. gxh3 {[%emt 0:00:51]} Rg7 {[%emt 0:00:57]} 41. Nd6 {[%emt 0:00:50]} Rg3 {[%emt 0:05:57]} 42. e7 {[%emt 0:00:33]} Rb8 {[%emt 0:02:44]} 43. e8=Q+ {[%emt 0:00:43]} Rxe8 {[%emt 0:00:06]} 44. Nxe8 {[%emt 0:00:06]} Rxh3+ {[%emt 0:00:15]} 45. Kg2 {[%emt 0:00:40]} Re3 {[%emt 0:00:18]} 46. Nxf6 {[%emt 0:00:18]} Re2+ {[%emt 0:00:14]} 47. Kh3 {[%emt 0:00:58]} Rxb2 {[%emt 0:00:22]} 48. Rd7 {[%emt 0:00:28]} 1-0